bitfinex/quotes_SOLUSD_20250318
["timestamp","ask_amount","ask_price","bid_price","bid_amount"]
[1742283831007,13.5479,125.14,125.08,38.98030504]
[1742283831008,20.33065618,125.14,125.08,38.98030504]
[1742283831308,20.33065618,125.14,125.09,27.27065618]
[1742283833812,20.36065618,125.14,125.09,27.27065618]
[1742283834312,20.36065618,125.14,125.09,165.30765618]
[1742283835504,0.03,125.14,125.09,165.30765618]
[1742283835697,20.36065618,125.14,125.09,165.30765618]
[1742283836099,20.36065618,125.14,125.09,144.977]
[1742283838328,20.33065618,125.13,125.09,144.977]
[1742283839498,20.36065618,125.14,125.09,144.977]
[1742283839693,20.36065618,125.14,125.1,18.64964886]
[1742283840216,20.36065618,125.14,125.1,156.68664886]
[1742283840415,0.03,125.14,125.1,156.68664886]
[1742283843209,0.03,125.14,125.1,177.01730504]
[1742283843819,0.03,125.14,125.1,189.49242305]
[1742283845700,0.03,125.14,125.1,177.01730504]
[1742283845900,0.03,125.14,125.1,177.08030504]
[1742283851521,0.03,125.14,125.1,156.74964886]
[1742283854427,0.03,125.14,125.1,138.1]
[1742283854624,20.33065618,125.13,125.1,138.1]
[1742283856212,0.03,125.14,125.1,138.1]
[1742283856411,20.36065618,125.14,125.1,138.1]
[1742283856934,0.03,125.14,125.1,158.43065618]
[1742283857433,0.03,125.14,125.11,20.33065618]
[1742283857630,0.03,125.14,125.11,177.01730504]
[1742283859429,0.03,125.14,125.11,156.68664886]
[1742283865119,0.03,125.14,125.11,177.01730504]
[1742283865522,0.03,125.14,125.11,156.68664886]
[1742283870946,0.03,125.14,125.11,177.01730504]
[1742283871349,0.03,125.14,125.13,18.64964886]
[1742283871725,0.03,125.14,125.13,191.94938975]
[1742283873128,0.03,125.14,125.13,247.57445076]
[1742283873452,0.063,125.17,125.13,272.37335074]
[1742283873639,0.063,125.17,125.15,20.33065618]
[1742283873940,0.063,125.17,125.14,18.64964886]
[1742283874142,20.39365618,125.17,125.13,226.82386099]
[1742283874550,20.39365618,125.17,125.13,88.78686099]
[1742283875139,0.063,125.17,125.13,8.3629]
[1742283875339,0.063,125.17,125.13,28.69355618]
[1742283877054,20.39365618,125.17,125.13,8.3629]
[1742283880955,20.39365618,125.17,125.13,8.4259]
[1742283881330,20.39365618,125.17,125.13,19.32982268]
[1742283883559,0.063,125.17,125.13,19.32982268]
[1742283883955,0.063,125.17,125.13,39.66047886]
[1742283884154,0.063,125.17,125.14,38.98030504]
[1742283884933,0.063,125.17,125.15,20.33065618]
[1742283885141,0.063,125.17,125.16,18.64964886]
[1742283885346,0.063,125.17,125.16,156.68664886]
[1742283885860,0.063,125.17,125.16,177.01730504]
[1742283886158,0.063,125.17,125.16,156.68664886]
[1742283886871,0.063,125.17,125.16,177.01730504]
[1742283890148,0.063,125.17,125.16,156.68664886]
[1742283892366,0.063,125.17,125.16,169.09347154]
[1742283892963,0.063,125.17,125.16,156.68664886]
[1742283893167,0.063,125.17,125.16,156.74964886]
[1742283894847,0.063,125.17,125.16,177.50678975]
[1742283895356,0.063,125.19,125.17,0.42648471]
[1742283895563,0.063,125.19,125.18,18.64964886]
[1742283895871,0.063,125.19,125.18,156.68664886]
[1742283897270,0.063,125.19,125.18,138.037]
[1742283901676,0.063,125.19,125.16,175.97647154]
[1742283902064,0.063,125.19,125.16,196.30712772]
[1742283902571,0.063,125.19,125.16,183.90030504]
[1742283903565,0.063,125.19,125.18,20.33065618]
[1742283903869,0.063,125.19,125.18,38.98030504]
[1742283904054,0.063,125.19,125.18,18.64964886]
[1742283904476,0.063,125.19,125.18,38.98030504]
[1742283904672,0.063,125.19,125.18,177.44378975]
[1742283907663,0.063,125.19,125.18,489.44378975]
[1742283908365,0.063,125.19,125.18,177.44378975]
[1742283908762,0.03,125.21,125.2,157.05013357]
[1742283908969,0.03,125.21,125.2,184.20078975]
[1742283911375,0.03,125.21,125.2,496.20078975]
[1742283911580,0.03,125.21,125.2,144.794]
[1742283912162,0.03,125.21,125.2,137.974]
[1742283913483,0.03,125.21,125.19,137.974]
[1742283918466,0.03,125.21,125.19,158.30465618]
[1742283919487,0.03,125.21,125.2,39.40678975]
[1742283919672,0.03,125.21,125.2,177.38078975]
[1742283920588,0.03,125.21,125.2,489.38078975]
[1742283921386,0.063,125.22,125.2,489.38078975]
[1742283922191,0.063,125.22,125.21,38.98030504]
[1742283923481,0.063,125.22,125.21,18.64964886]
[1742283925088,0.063,125.22,125.21,176.95430504]
[1742283925964,0.063,125.22,125.21,156.62364886]
[1742283926165,0.063,125.22,125.21,163.44364886]
[1742283928770,0.063,125.22,125.21,144.794]
[1742283930972,0.063,125.22,125.21,6.82]
[1742283932474,20.39365618,125.22,125.19,138.037]
[1742283934391,20.33065618,125.21,125.19,0.063]
[1742283934597,20.33065618,125.2,125.19,0.063]
[1742283935271,20.33065618,125.21,125.19,0.063]
[1742283935911,20.39365618,125.22,125.19,0.063]
[1742283936596,0.063,125.22,125.19,0.063]
[1742283937794,20.33065618,125.21,125.19,0.063]
[1742283937979,20.33065618,125.2,125.19,0.063]
[1742283938387,20.33065618,125.21,125.19,0.063]
[1742283940896,20.33065618,125.2,125.19,0.063]
[1742283943102,20.33065618,125.21,125.19,0.063]
[1742283945206,20.33065618,125.2,125.19,0.063]
[1742283949697,0.063,125.22,125.19,0.063]
[1742283950021,20.33065618,125.2,125.19,0.063]
[1742283953796,20.36065618,125.21,125.19,0.063]
[1742283956420,20.33065618,125.2,125.19,0.063]
[1742283958412,20.36065618,125.21,125.19,0.063]
[1742283958801,0.03,125.21,125.19,0.063]
[1742283960902,0.03,125.21,125.19,20.39365618]
[1742283961097,0.03,125.21,125.2,39.40678975]
[1742283961303,0.03,125.21,125.2,177.38078975]
[1742283962600,0.03,125.21,125.2,489.38078975]
[1742283962805,0.03,125.21,125.2,501.72710163]
[1742283965428,0.03,125.21,125.2,501.30061692]
[1742283965632,0.03,125.21,125.2,189.30061692]
[1742283966011,0.03,125.21,125.2,189.72710163]
[1742283967328,0.063,125.22,125.21,19.07613357]
[1742283967514,0.063,125.22,125.21,39.40678975]
[1742283968533,0.063,125.22,125.21,381.5627656]
[1742283969318,0.063,125.22,125.21,383.2017656]
[1742283970740,0.063,125.22,125.21,433.3544904]
[1742283972027,0.063,125.22,125.21,571.3284904]
[1742283972830,0.063,125.22,125.21,583.70066749]
[1742283973338,0.063,125.22,125.21,249.73101131]
[1742283973522,0.063,125.22,125.21,230.65487774]
[1742283973841,0.063,125.22,125.21,205.96225397]
[1742283974918,0.063,125.22,125.21,137.974]
[1742283975323,0.063,125.22,125.21,176.95430504]
[1742283976920,0.063,125.22,125.21,177.38078975]
[1742283978623,0.063,125.22,125.21,207.52993781]
[1742283979643,0.063,125.22,125.21,207.24561467]
[1742283979845,0.063,125.22,125.21,219.61699686]
[1742283980045,0.063,125.22,125.21,219.90132]
[1742283980233,0.063,125.22,125.21,531.90132]
[1742283980440,0.063,125.22,125.21,538.68132]
[1742283981442,0.063,125.22,125.21,496.16078975]
[1742283982828,0.063,125.22,125.21,508.53217194]
[1742283983228,0.063,125.22,125.21,526.30581856]
[1742283983644,0.063,125.22,125.21,214.30581856]
[1742283984528,0.063,125.22,125.21,189.61319479]
[1742283986036,0.063,125.22,125.21,201.97088434]
[1742283986647,0.063,125.22,125.21,513.97088434]
[1742283987051,0.063,125.22,125.21,508.5184793]
[1742283988148,0.03,125.25,125.23,0.42648471]
[1742283988331,0.03,125.25,125.24,18.64964886]
[1742283991034,0.03,125.25,125.24,156.62364886]
[1742283991237,0.03,125.25,125.24,177.38078975]
[1742283992653,0.03,125.25,125.24,489.38078975]
[1742283995979,0.03,125.25,125.24,156.62364886]
[1742283996146,0.03,125.25,125.24,176.95430504]
[1742283998151,0.03,125.25,125.24,177.38078975]
[1742283999161,0.03,125.25,125.24,489.38078975]
[1742284005363,0.03,125.25,125.24,177.38078975]
[1742284007361,0.063,125.26,125.25,138.08616157]
[1742284007560,0.033,125.27,125.26,18.64964886]
[1742284007770,0.033,125.27,125.26,176.92430504]
[1742284008066,0.033,125.27,125.26,177.35078975]
[1742284008457,0.033,125.27,125.26,519.48471557]
[1742284008649,21.87495618,125.35,125.3,20.33065618]
[1742284008850,21.87495618,125.35,125.3,165.03465618]
[1742284010471,1.5443,125.35,125.3,165.03465618]
[1742284010762,21.87495618,125.35,125.3,165.03465618]
[1742284012054,20.36065618,125.34,125.3,144.704]
[1742284013368,19.89065618,125.34,125.3,144.704]
[1742284013585,21.87495618,125.35,125.3,144.704]
[1742284013869,20.33065618,125.34,125.3,144.704]
[1742284015852,20.36065618,125.34,125.3,144.704]
[1742284019872,0.03,125.34,125.31,18.64964886]
[1742284021572,0.03,125.34,125.31,38.98030504]
[1742284021958,0.03,125.34,125.31,18.64964886]
[1742284024182,0.03,125.34,125.31,38.98030504]
[1742284024778,0.03,125.34,125.31,176.92430504]
[1742284025379,0.03,125.34,125.31,156.59364886]
[1742284025577,0.03,125.34,125.31,176.92430504]
[1742284026186,20.36065618,125.34,125.31,156.59364886]
[1742284026363,20.33065618,125.33,125.31,137.944]
[1742284027576,20.33065618,125.33,125.31,138.007]
[1742284028585,20.36065618,125.34,125.31,138.007]
[1742284031490,0.03,125.34,125.31,0.063]
[1742284032970,20.36065618,125.34,125.31,0.063]
[1742284034189,0.03,125.34,125.31,18.71264886]
[1742284034573,0.03,125.34,125.31,39.04330504]
[1742284034994,0.03,125.34,125.31,18.71264886]
[1742284035687,0.03,125.34,125.31,39.04330504]
[1742284036192,0.03,125.34,125.33,20.33065618]
[1742284036389,0.03,125.34,125.33,176.92430504]
[1742284038992,0.03,125.34,125.33,156.59364886]
[1742284039680,0.03,125.34,125.33,137.944]
[1742284039987,0.03,125.34,125.33,138.007]
[1742284042386,0.03,125.34,125.33,0.063]
[1742284043406,0.03,125.34,125.33,20.063]
[1742284043611,0.03,125.34,125.33,0.063]
[1742284056590,0.03,125.34,125.33,39.04330504]
[1742284057189,0.03,125.34,125.33,39.46978975]
[1742284057789,0.03,125.34,125.33,69.61869375]
[1742284058005,2.9018029,125.38,125.33,69.61869375]
[1742284058206,2.9018029,125.38,125.34,20.33065618]
[1742284058409,2.9018029,125.38,125.35,6.78]
[1742284058609,2.9018029,125.38,125.35,27.11065618]
[1742284059614,2.9018029,125.38,125.35,39.5336277]
[1742284060303,2.9018029,125.38,125.35,19.20297152]
[1742284061403,20.33065618,125.37,125.35,19.20297152]
[1742284062516,23.23245908,125.38,125.35,19.20297152]
[1742284062727,23.23245908,125.38,125.35,6.78]
[1742284062899,2.9018029,125.38,125.35,6.78]
[1742284063541,23.23245908,125.38,125.35,6.78]
[1742284063724,2.9018029,125.38,125.35,6.78]
[1742284064102,2.9318029,125.38,125.35,6.78]
[1742284072123,23.26245908,125.38,125.35,6.78]
[1742284073320,2.9318029,125.38,125.35,6.78]
[1742284079429,23.26245908,125.38,125.35,6.78]
[1742284080133,2.9318029,125.38,125.35,6.78]
[1742284081331,23.26245908,125.38,125.35,6.78]
[1742284081516,20.33065618,125.36,125.34,12.42297152]
[1742284081709,20.33065618,125.35,125.34,12.42297152]
[1742284082532,27.09065618,125.37,125.34,12.42297152]
[1742284083028,20.33065618,125.36,125.33,0.063]
[1742284083934,20.33065618,125.35,125.33,0.063]
[1742284084316,20.33065618,125.36,125.33,0.063]
[1742284085225,20.33065618,125.35,125.33,0.063]
[1742284086121,20.33065618,125.34,125.33,0.063]
[1742284086311,14.7364,125.37,125.33,0.063]
[1742284086508,20.33065618,125.35,125.33,0.063]
[1742284086928,2.9318029,125.38,125.33,27.17365618]
[1742284087233,2.9318029,125.38,125.34,20.33065618]
[1742284087527,23.26245908,125.38,125.33,27.17365618]
[1742284087733,0.03,125.36,125.33,27.17365618]
[1742284088123,0.03,125.36,125.33,39.5966277]
[1742284088824,0.03,125.36,125.33,64.27458269]
[1742284089331,0.03,125.36,125.34,12.42297152]
[1742284089535,0.03,125.36,125.34,32.7536277]
[1742284089936,0.03,125.36,125.34,12.42297152]
[1742284091235,0.03,125.36,125.34,17.90342905]
[1742284094633,0.03,125.36,125.34,17.90342905]
[1742284094817,20.36065618,125.36,125.34,17.90342905]
[1742284095024,20.33065618,125.35,125.34,17.90342905]
[1742284095736,20.33065618,125.35,125.33,0.063]
[1742284095918,20.33065618,125.34,125.33,0.063]
[1742284099341,20.36065618,125.34,125.33,0.063]
[1742284103425,28.33885618,125.34,125.33,0.063]
[1742284105430,28.76534089,125.34,125.33,0.063]
[1742284105638,47.41498975,125.34,125.31,0.063]
[1742284105834,20.75714089,125.32,125.31,0.063]
[1742284106719,20.33065618,125.32,125.31,0.063]
[1742284109828,28.31015618,125.32,125.31,0.063]
[1742284111843,28.73664089,125.32,125.31,0.063]
[1742284115148,0.42648471,125.3,125.24,0.063]
[1742284115449,20.33065618,125.27,125.24,0.063]
[1742284115633,20.33065618,125.26,125.24,0.063]
[1742284116349,20.33065618,125.27,125.24,0.063]
[1742284117848,20.33065618,125.26,125.24,0.063]
[1742284119148,20.33065618,125.27,125.24,0.063]
[1742284119527,20.33065618,125.28,125.24,0.063]
[1742284121053,20.33065618,125.25,125.24,0.063]
[1742284128355,28.31465618,125.25,125.24,0.063]
[1742284130840,28.74114089,125.25,125.24,0.063]
[1742284131947,47.39078975,125.25,125.24,0.063]
[1742284132345,28.74114089,125.25,125.24,0.063]
[1742284132748,20.75714089,125.25,125.24,0.063]
[1742284133365,28.74114089,125.25,125.24,0.063]
[1742284134543,20.75714089,125.25,125.24,0.063]
[1742284136141,20.33065618,125.25,125.24,0.063]
[1742284136452,20.33065618,125.26,125.24,0.063]
[1742284138762,20.33065618,125.27,125.24,0.063]
[1742284140163,20.33065618,125.26,125.24,0.063]
[1742284143457,6.8,125.29,125.24,0.063]
[1742284143643,20.33065618,125.27,125.24,0.063]
[1742284145772,20.33065618,125.26,125.24,0.063]
[1742284146277,20.33065618,125.27,125.24,0.063]
[1742284147773,20.33065618,125.26,125.24,0.063]
[1742284148366,20.33065618,125.27,125.24,0.063]
[1742284148680,20.33065618,125.26,125.24,0.063]
[1742284148885,20.33065618,125.27,125.24,0.063]
[1742284150054,0.17216157,125.31,125.24,0.063]
[1742284150266,40.33065618,125.29,125.24,20.39365618]
[1742284150476,40.33065618,125.29,125.24,0.063]
[1742284151857,40.33065618,125.29,125.24,20.39365618]
[1742284152866,40.33065618,125.29,125.24,21.97285618]
[1742284153257,20.33065618,125.28,125.24,1.6422]
[1742284153880,40.33065618,125.29,125.24,1.6422]
[1742284155176,0.03,125.31,125.25,12.8486]
[1742284155478,40.36065618,125.31,125.25,33.17925618]
[1742284155675,40.36065618,125.31,125.26,20.33065618]
[1742284157375,20.33065618,125.3,125.25,25.27157152]
[1742284157581,20.33065618,125.29,125.25,25.27157152]
[1742284158183,20.33065618,125.29,125.25,12.8486]
[1742284158590,20.33065618,125.28,125.24,8.4422]
[1742284158877,0.03,125.31,125.27,20.33065618]
[1742284159771,0.03,125.31,125.28,20.33065618]
[1742284161977,0.03,125.31,125.26,6.2504]
[1742284162176,0.03,125.31,125.27,20.33065618]
[1742284162482,0.03,125.31,125.28,20.33065618]
[1742284163589,0.03,125.31,125.27,20.33065618]
[1742284163976,0.03,125.31,125.28,20.33065618]
[1742284164565,0.03,125.31,125.26,6.2504]
[1742284164769,0.03,125.31,125.27,20.33065618]
[1742284166489,20.36065618,125.31,125.26,6.2504]
[1742284166691,20.33065618,125.3,125.26,6.2504]
[1742284166881,20.33065618,125.3,125.25,138.163]
[1742284167393,20.33065618,125.29,125.25,138.163]
[1742284168488,20.33065618,125.29,125.25,0.063]
[1742284169090,20.33065618,125.28,125.25,0.063]
[1742284169675,20.33065618,125.29,125.25,0.063]
[1742284170997,20.33065618,125.28,125.25,0.063]
[1742284172388,20.33065618,125.26,125.25,0.063]
[1742284173690,20.75714089,125.26,125.25,0.063]
[1742284173886,39.40678975,125.26,125.25,0.063]
[1742284174093,41.04308975,125.26,125.25,0.063]
[1742284174292,49.02638975,125.26,125.25,0.063]
[1742284175499,19.20092968,125.25,125.24,0.063]
[1742284175699,39.53158586,125.25,125.24,0.063]
[1742284175892,39.53158586,125.25,125.22,0.063]
[1742284175893,20.42648471,125.23,125.22,0.063]
[1742284176201,40.75714089,125.23,125.22,0.063]
[1742284176383,130.06506561,125.23,125.22,0.063]
[1742284176584,48.74244089,125.23,125.22,0.063]
[1742284178131,20.75714089,125.23,125.22,0.063]
[1742284178593,27.57714089,125.23,125.22,0.063]
[1742284179498,35.56244089,125.23,125.22,0.063]
[1742284179693,27.57714089,125.23,125.22,0.063]
[1742284185950,35.56244089,125.23,125.22,0.063]
[1742284187930,116.88506561,125.23,125.22,0.063]
[1742284189253,116.88506561,125.23,125.21,0.063]
[1742284189254,19.07613357,125.22,125.21,0.063]
[1742284189554,39.53158586,125.22,125.21,0.063]
[1742284189934,47.51748586,125.22,125.2,0.063]
[1742284190258,20.881937,125.21,125.2,0.063]
[1742284191356,28.868437,125.21,125.2,0.063]
[1742284191731,18.64964886,125.2,125.19,0.063]
[1742284191932,38.98030504,125.2,125.19,0.063]
[1742284192150,39.53158586,125.2,125.19,0.063]
[1742284192357,20.881937,125.19,125.18,0.063]
[1742284192662,20.75714089,125.17,125.13,0.063]
[1742284193231,27.55714089,125.17,125.13,0.063]
[1742284195154,108.87976561,125.17,125.13,0.063]
[1742284195338,40.33065618,125.14,125.13,0.063]
[1742284197058,40.75714089,125.14,125.13,0.063]
[1742284199853,48.74814089,125.14,125.13,0.063]
[1742284200059,67.39778975,125.14,125.13,0.063]
[1742284205877,68.02258586,125.14,125.13,0.063]
[1742284206600,67.52258586,125.14,125.13,0.063]
[1742284208799,68.02258586,125.14,125.13,0.063]
[1742284208969,18.64964886,125.13,125.12,0.063]
[1742284209279,45.78030504,125.13,125.12,0.063]
[1742284209467,46.20678975,125.13,125.11,0.063]
[1742284209672,38.98030504,125.12,125.11,0.063]
[1742284210801,46.97260504,125.12,125.11,0.063]
[1742284215903,39.53158586,125.11,125.1,0.063]
[1742284216083,39.90678975,125.11,125.1,0.063]
[1742284216585,39.40678975,125.11,125.1,0.063]
[1742284217282,47.39968975,125.11,125.1,0.063]
[1742284218104,47.39968975,125.11,125.03,0.063]
[1742284218105,0.42648471,125.1,125.03,0.063]
[1742284218409,40.33065618,125.07,125.03,0.063]
[1742284220705,48.32615618,125.07,125.03,0.063]
[1742284223445,67.40228975,125.07,125.06,0.063]
[1742284224243,74.35089735,125.07,125.06,0.063]
[1742284224428,67.40228975,125.07,125.06,0.063]
[1742284225443,67.40228975,125.07,125.03,0.063]
[1742284225645,40.33065618,125.04,125.03,0.063]
[1742284225847,47.13065618,125.04,125.03,0.063]
[1742284226728,55.12805618,125.04,125.03,0.063]
[1742284227246,55.55454089,125.04,125.03,0.063]
[1742284227557,0.42648471,125.03,125.0,0.063]
[1742284227855,20.75714089,125.01,125.0,0.063]
[1742284229268,28.75644089,125.01,125.0,0.063]
[1742284230562,20.75714089,125.01,125.0,0.063]
[1742284230749,171.12152472,125.02,125.0,0.063]
[1742284230750,81.8,125.02,125.0,0.063]
[1742284230928,20.33065618,125.01,125.0,0.063]
[1742284234255,88.6,125.02,125.0,0.063]
[1742284234557,20.33065618,125.01,125.0,0.063]
[1742284238261,88.6,125.02,125.0,0.063]
[1742284238262,27.13065618,125.02,125.0,0.063]
[1742284238558,20.33065618,125.02,125.0,0.063]
[1742284239056,20.0,125.01,125.0,0.063]
[1742284245464,20.39365618,125.02,125.0,0.063]
[1742284248868,0.063,125.02,125.0,20.39365618]
[1742284250670,0.063,125.02,125.0,0.063]
[1742284253571,0.063,125.02,125.0,20.39365618]
[1742284254487,0.063,125.02,125.0,0.063]
[1742284269372,0.063,125.02,125.01,20.33065618]
[1742284269574,0.063,125.02,125.01,38.98030504]
[1742284271394,1.5792,125.11,125.02,0.42648471]
[1742284271583,20.33065618,125.09,125.03,35.06705618]
[1742284271780,20.33065618,125.08,125.03,35.06705618]
[1742284271979,20.33065618,125.07,125.03,6.78]
[1742284272178,20.33065618,125.06,125.03,6.78]
[1742284273281,20.33065618,125.07,125.03,6.78]
[1742284274674,27.07023357,125.1,125.03,27.11065618]
[1742284274877,0.03,125.11,125.1,0.14216157]
[1742284275092,0.03,125.11,125.1,260.60678975]
[1742284275277,0.03,125.11,125.1,248.55065618]
[1742284275480,0.03,125.11,125.1,221.2]
[1742284275802,0.03,125.11,125.09,7.02]
[1742284277787,0.03,125.11,125.09,27.35065618]
[1742284277988,0.03,125.11,125.09,7.02]
[1742284280107,20.36065618,125.11,125.06,20.33065618]
[1742284280279,20.33065618,125.1,125.05,45.87516586]
[1742284280680,20.36065618,125.11,125.05,45.87516586]
[1742284280891,20.36065618,125.11,125.05,33.35095618]
[1742284281397,0.03,125.11,125.07,20.33065618]
[1742284281602,0.03,125.11,125.1,20.33065618]
[1742284281797,0.03,125.11,125.1,27.41065618]
[1742284283206,0.03,125.11,125.1,339.41065618]
[1742284284411,0.03,125.11,125.1,504.65798975]
[1742284286018,0.03,125.11,125.1,192.65798975]
[1742284286789,0.063,125.15,125.1,192.65798975]
[1742284287223,0.063,125.15,125.13,20.33065618]
[1742284288401,0.063,125.15,125.14,7.06]
[1742284288603,0.063,125.15,125.14,27.39065618]
[1742284290608,0.063,125.15,125.13,158.43065618]
[1742284291721,0.063,125.15,125.13,20.33065618]
[1742284292893,0.063,125.15,125.14,20.33065618]
[1742284299824,0.063,125.15,125.14,39.40678975]
[1742284300629,0.063,125.15,125.14,177.50678975]
[1742284300806,0.063,125.15,125.14,179.16108975]
[1742284301195,0.063,125.15,125.14,491.16108975]
[1742284301696,0.063,125.15,125.14,497.56818975]
[1742284302096,0.03,125.16,125.15,19.07613357]
[1742284302328,0.03,125.16,125.15,122.3264985]
[1742284302500,0.03,125.16,125.15,41.00387378]
[1742284303196,0.03,125.23,125.15,122.3264985]
[1742284303405,0.03,125.23,125.2,20.33065618]
[1742284303604,0.03,125.23,125.2,7.02]
[1742284307301,20.33065618,125.22,125.17,19.07613357]
[1742284307619,20.33065618,125.22,125.18,7.02]
[1742284309728,20.33065618,125.22,125.17,177.50678975]
[1742284309916,20.33065618,125.21,125.18,7.02]
[1742284310101,20.33065618,125.22,125.18,7.02]
[1742284314128,20.36065618,125.23,125.18,27.35065618]
[1742284314332,20.36065618,125.23,125.18,7.02]
[1742284316331,20.33065618,125.22,125.18,7.02]
[1742284318439,40.36065618,125.23,125.18,27.35065618]
[1742284320716,20.03,125.23,125.19,20.33065618]
[1742284320913,40.36065618,125.23,125.18,27.35065618]
[1742284321332,0.03,125.23,125.19,20.33065618]
[1742284324555,0.03,125.23,125.22,20.33065618]
[1742284324841,0.03,125.23,125.22,27.31065618]
[1742284325349,0.03,125.23,125.22,184.48678975]
[1742284325930,0.063,125.24,125.23,25.30733357]
[1742284326117,0.063,125.24,125.23,351.11111506]
[1742284326323,0.063,125.28,125.23,487.61511447]
[1742284326525,0.063,125.28,125.27,39.40678975]
[1742284326735,0.063,125.28,125.27,184.52678975]
[1742284328836,0.063,125.28,125.27,46.42678975]
[1742284330530,0.063,125.28,125.27,27.35065618]
[1742284337452,0.063,125.28,125.27,7.02]
[1742284337651,0.063,125.28,125.24,158.43065618]
[1742284337851,0.063,125.28,125.25,7.0]
[1742284338041,0.063,125.28,125.25,27.33065618]
[1742284341562,0.063,125.28,125.26,20.33065618]
[1742284342531,0.063,125.28,125.26,6.98]
[1742284350050,0.063,125.28,125.26,27.31065618]
[1742284350244,0.063,125.28,125.27,20.33065618]
[1742284352257,0.063,125.28,125.26,27.31065618]
[1742284352951,0.063,125.28,125.26,339.31065618]
[1742284354144,0.063,125.28,125.26,27.31065618]
[1742284357148,0.063,125.28,125.26,339.31065618]
[1742284358978,0.063,125.28,125.26,27.31065618]
[1742284361787,0.063,125.28,125.26,339.31065618]
[1742284362082,0.063,125.28,125.26,27.31065618]
[1742284362579,0.063,125.28,125.27,39.40678975]
[1742284363875,0.063,125.28,125.27,20.33065618]
[1742284364184,0.063,125.28,125.27,39.40678975]
[1742284364983,0.063,125.28,125.27,351.40678975]
[1742284365578,0.063,125.28,125.27,351.26462818]
[1742284365988,0.063,125.28,125.27,351.12246661]
[1742284366274,0.063,125.28,125.27,332.13065618]
[1742284366481,0.063,125.28,125.27,20.13065618]
[1742284367960,0.063,125.28,125.26,27.31065618]
[1742284370967,0.063,125.28,125.25,25.56964886]
[1742284371168,0.063,125.28,125.25,45.90030504]
[1742284371674,0.063,125.28,125.25,6.92]
[1742284372060,0.063,125.28,125.24,0.063]
[1742284372275,20.39365618,125.28,125.24,0.063]
[1742284372573,0.063,125.28,125.24,0.063]
[1742284373169,0.03,125.29,125.28,18.64964886]
[1742284373480,0.03,125.29,125.28,184.06030504]
[1742284373865,0.03,125.29,125.28,475.72964886]
[1742284374069,0.03,125.29,125.28,496.06030504]
[1742284375063,0.03,125.29,125.28,508.58451472]
[1742284376793,0.03,125.29,125.28,370.48451472]
[1742284377094,0.03,125.29,125.28,76.1327242]
[1742284380004,0.03,125.29,125.28,388.1327242]
[1742284380480,0.03,125.29,125.28,367.80206802]
[1742284380679,0.03,125.29,125.28,388.1327242]
[1742284380881,0.03,125.29,125.28,388.55920891]
[1742284381968,0.03,125.29,125.28,363.88125392]
[1742284382200,0.03,125.31,125.3,20.33065618]
[1742284383307,0.03,125.31,125.3,50.74598902]
[1742284384309,0.03,125.31,125.3,69.82212259]
[1742284386622,0.03,125.31,125.3,69.39563788]
[1742284388613,0.03,125.31,125.3,81.83587903]
[1742284389484,0.03,125.31,125.3,17.93470532]
[1742284390414,0.03,125.31,125.28,170.87089733]
[1742284390615,20.36065618,125.31,125.28,12.44024115]
[1742284391796,20.36065618,125.31,125.27,218.143]
[1742284393860,20.33065618,125.29,125.27,0.063]
[1742284394029,20.33065618,125.28,125.27,0.063]
[1742284394326,20.33065618,125.29,125.27,0.063]
[1742284396111,28.09355618,125.3,125.27,0.063]